[Event "Live Chess"]
[Site "Chess.com"]
[Date "2024.06.02"]
[Round "-"]
[White "ShanthamGrarks"]
[Black "Mikhail_Golubev"]
[Result "1-0"]
[WhiteElo "1896"]
[BlackElo "2553"]
[TimeControl "300"]
[EndTime "19:30:56 PDT"]
[Termination "ShanthamGrarks won on time"]

1. d4 {[%clk 0:04:56.2]} 1... d6 {[%clk 0:04:57.7]} 2. Nc3 {[%clk 0:04:55.8]}
2... g6 {[%clk 0:04:41.3]} 3. Nf3 {[%clk 0:04:51.7]} 3... Bg7 {[%clk 0:04:39.9]}
4. e4 {[%clk 0:04:49.6]} 4... Nf6 {[%clk 0:04:38.7]} 5. Be3 {[%clk 0:04:47.5]}
5... O-O {[%clk 0:04:36.1]} 6. Be2 {[%clk 0:04:46.1]} 6... Bg4 {[%clk
0:04:30.4]} 7. h3 {[%clk 0:04:44.1]} 7... Bxf3 {[%clk 0:04:28.2]} 8. Bxf3 {[%clk
0:04:43.7]} 8... e5 {[%clk 0:04:22.1]} 9. dxe5 {[%clk 0:04:34.4]} 9... dxe5
{[%clk 0:04:19.6]} 10. Qxd8 {[%clk 0:04:33.1]} 10... Rxd8 {[%clk 0:04:18.3]} 11.
Bg5 {[%clk 0:04:32.7]} 11... c6 {[%clk 0:04:08.4]} 12. O-O {[%clk 0:04:29.7]}
12... Na6 {[%clk 0:03:54.3]} 13. Rfd1 {[%clk 0:04:26.7]} 13... h6 {[%clk
0:03:51.7]} 14. Bh4 {[%clk 0:04:21.4]} 14... Nb4 {[%clk 0:03:39.8]} 15. Rac1
{[%clk 0:04:06.3]} 15... Rxd1+ {[%clk 0:03:38]} 16. Bxd1 {[%clk 0:04:04.6]}
16... Rd8 {[%clk 0:03:31.9]} 17. a3 {[%clk 0:04:01.1]} 17... Na6 {[%clk
0:03:30.8]} 18. b4 {[%clk 0:03:51.2]} 18... Nc7 {[%clk 0:03:20.7]} 19. Bg4
{[%clk 0:03:41.4]} 19... h5 {[%clk 0:03:13.9]} 20. Bf3 {[%clk 0:03:32.5]} 20...
Ne6 {[%clk 0:03:11.7]} 21. Rd1 {[%clk 0:03:21.4]} 21... Nd4 {[%clk 0:02:46.8]}
22. Kf1 {[%clk 0:03:13]} 22... Re8 {[%clk 0:02:10.2]} 23. Be2 {[%clk 0:03:06.2]}
23... Nxc2 {[%clk 0:02:00.1]} 24. Bxf6 {[%clk 0:03:04.9]} 24... Bxf6 {[%clk
0:01:58.9]} 25. Rd7 {[%clk 0:03:03.1]} 25... Re7 {[%clk 0:01:54.1]} 26. Rxe7
{[%clk 0:02:45.8]} 26... Bxe7 {[%clk 0:01:54]} 27. Nb1 {[%clk 0:02:43.9]} 27...
b5 {[%clk 0:01:31.2]} 28. Bd3 {[%clk 0:02:42]} 28... Nd4 {[%clk 0:01:30.2]} 29.
f3 {[%clk 0:02:40.8]} 29... c5 {[%clk 0:01:21.5]} 30. bxc5 {[%clk 0:02:32.2]}
30... Bxc5 {[%clk 0:01:21.4]} 31. Nc3 {[%clk 0:02:21.7]} 31... a6 {[%clk
0:01:20.2]} 32. a4 {[%clk 0:02:20]} 32... b4 {[%clk 0:01:11.2]} 33. Nb1 {[%clk
0:02:18.2]} 33... b3 {[%clk 0:00:57.5]} 34. Bc4 {[%clk 0:02:17.3]} 34... Bb4
{[%clk 0:00:52.3]} 35. Bxa6 {[%clk 0:02:09.2]} 35... h4 {[%clk 0:00:46.7]} 36.
Bc4 {[%clk 0:02:07.2]} 36... b2 {[%clk 0:00:45.6]} 37. Kf2 {[%clk 0:02:00.1]}
37... Kf8 {[%clk 0:00:43.9]} 38. Ke3 {[%clk 0:01:56.5]} 38... Ke7 {[%clk
0:00:36.4]} 39. Kd3 {[%clk 0:01:55.4]} 39... f5 {[%clk 0:00:30.5]} 40. exf5
{[%clk 0:01:54.3]} 40... gxf5 {[%clk 0:00:29.4]} 41. Ba2 {[%clk 0:01:48.6]}
41... Kd6 {[%clk 0:00:26.5]} 42. Nd2 {[%clk 0:01:45]} 42... Bxd2 {[%clk
0:00:14.2]} 43. Kxd2 {[%clk 0:01:43.7]} 43... e4 {[%clk 0:00:13.1]} 44. fxe4
{[%clk 0:01:40.8]} 44... fxe4 {[%clk 0:00:13]} 45. Ke3 {[%clk 0:01:36.8]} 45...
Ke5 {[%clk 0:00:12.2]} 46. a5 {[%clk 0:01:35]} 46... Nc2+ {[%clk 0:00:09.6]} 47.
Kd2 {[%clk 0:01:32.4]} 47... Na3 {[%clk 0:00:07.2]} 48. Kc3 {[%clk 0:01:28]}
48... e3 {[%clk 0:00:04.6]} 49. Kd3 {[%clk 0:01:26.4]} 49... Kf4 {[%clk
0:00:04]} 50. Ke2 {[%clk 0:01:25.2]} 50... Ke4 {[%clk 0:00:02.6]} 51. a6 {[%clk
0:01:22.2]} 51... Nb5 {[%clk 0:00:02.2]} 52. Bb1+ {[%clk 0:01:20]} 52... Kd4
{[%clk 0:00:01.8]} 53. Bd3 {[%clk 0:01:15.5]} 53... Nc3+ {[%clk 0:00:00.7]} 54.
Kf3 {[%clk 0:01:07.9]} 54... Kxd3 {[%clk 0:00:00.6]} 55. a7 {[%clk 0:01:06.7]}
55... b1=Q {[%clk 0:00:00.5]} 56. a8=Q {[%clk 0:01:03.7]} 56... Ne2 {[%clk
0:00:00.4]} 57. Qe4+ {[%clk 0:01:00.3]} 1-0

[Event "Live Chess"]
[Site "Chess.com"]
[Date "2024.06.02"]
[Round "-"]
[White "educatedlad"]
[Black "KeithArkell"]
[Result "1/2-1/2"]
[WhiteElo "1744"]
[BlackElo "2431"]
[TimeControl "300"]
[EndTime "19:31:08 PDT"]
[Termination "Game drawn - insufficient material"]

1. d4 {[%clk 0:04:55.2]} 1... e6 {[%clk 0:04:58.7]} 2. c4 {[%clk 0:04:53.4]}
2... Bb4+ {[%clk 0:04:57.4]} 3. Bd2 {[%clk 0:04:51.6]} 3... Bxd2+ {[%clk
0:04:56.5]} 4. Qxd2 {[%clk 0:04:50.3]} 4... Nf6 {[%clk 0:04:56.4]} 5. Nc3 {[%clk
0:04:49.1]} 5... d6 {[%clk 0:04:56.3]} 6. Nf3 {[%clk 0:04:46.8]} 6... Qe7 {[%clk
0:04:55.4]} 7. e4 {[%clk 0:04:44.5]} 7... e5 {[%clk 0:04:52]} 8. dxe5 {[%clk
0:04:37.9]} 8... dxe5 {[%clk 0:04:50.9]} 9. Nd5 {[%clk 0:04:35.3]} 9... Nxd5
{[%clk 0:04:47.6]} 10. Qxd5 {[%clk 0:04:34.3]} 10... Nc6 {[%clk 0:04:44.2]} 11.
Be2 {[%clk 0:04:31.1]} 11... Be6 {[%clk 0:04:43.1]} 12. Qd2 {[%clk 0:04:28.3]}
12... Rd8 {[%clk 0:04:42.1]} 13. Qc2 {[%clk 0:04:26.6]} 13... Bg4 {[%clk
0:04:41.1]} 14. O-O {[%clk 0:04:24.2]} 14... Bxf3 {[%clk 0:04:40.4]} 15. Bxf3
{[%clk 0:04:22.6]} 15... O-O {[%clk 0:04:39.8]} 16. Rad1 {[%clk 0:04:18.9]}
16... Rd4 {[%clk 0:04:38.9]} 17. Rxd4 {[%clk 0:04:17.2]} 17... Nxd4 {[%clk
0:04:36.9]} 18. Qc3 {[%clk 0:04:16.2]} 18... Rd8 {[%clk 0:04:35.8]} 19. b3
{[%clk 0:04:13.7]} 19... Qf6 {[%clk 0:04:32.3]} 20. Qe3 {[%clk 0:04:10.1]} 20...
c5 {[%clk 0:04:29.4]} 21. Rd1 {[%clk 0:04:05.1]} 21... Rd6 {[%clk 0:04:22.8]}
22. h3 {[%clk 0:03:59.6]} 22... g6 {[%clk 0:04:11.5]} 23. Bg4 {[%clk 0:03:50.6]}
23... h6 {[%clk 0:04:09.1]} 24. Qxh6 {[%clk 0:03:45.8]} 24... a6 {[%clk
0:03:43]} 25. Qe3 {[%clk 0:02:49.2]} 25... b5 {[%clk 0:03:21.7]} 26. Be2 {[%clk
0:02:40]} 26... Qf4 {[%clk 0:03:18.2]} 27. Qxf4 {[%clk 0:02:38.1]} 27... exf4
{[%clk 0:03:10.8]} 28. Bd3 {[%clk 0:02:30.8]} 28... b4 {[%clk 0:03:08.3]} 29. g3
{[%clk 0:02:25]} 29... fxg3 {[%clk 0:03:06.8]} 30. fxg3 {[%clk 0:02:23.3]} 30...
Kg7 {[%clk 0:03:06.1]} 31. Kf2 {[%clk 0:02:22]} 31... Kf6 {[%clk 0:03:04.8]} 32.
Re1 {[%clk 0:02:17.6]} 32... Ke5 {[%clk 0:03:03.8]} 33. Ke3 {[%clk 0:02:14.9]}
33... f6 {[%clk 0:02:53.5]} 34. h4 {[%clk 0:02:10.5]} 34... Rd8 {[%clk
0:02:51.9]} 35. Rf1 {[%clk 0:02:07.9]} 35... a5 {[%clk 0:02:49.7]} 36. g4 {[%clk
0:02:04.9]} 36... Rh8 {[%clk 0:02:48.6]} 37. Rh1 {[%clk 0:02:01.6]} 37... Ne6
{[%clk 0:02:46.1]} 38. h5 {[%clk 0:02:00.1]} 38... Rh6 {[%clk 0:02:40.8]} 39.
Be2 {[%clk 0:01:56]} 39... Nf4 {[%clk 0:02:39.5]} 40. Bf3 {[%clk 0:01:53.4]}
40... a4 {[%clk 0:02:25.3]} 41. hxg6 {[%clk 0:01:44.7]} 41... Rxg6 {[%clk
0:02:23.3]} 42. bxa4 {[%clk 0:01:41.6]} 42... Rg8 {[%clk 0:02:18]} 43. Rh7
{[%clk 0:01:37.6]} 43... Rd8 {[%clk 0:02:11]} 44. Re7+ {[%clk 0:01:35.3]} 44...
Kd6 {[%clk 0:02:10.2]} 45. Rb7 {[%clk 0:01:29]} 45... Ke6 {[%clk 0:02:07.3]} 46.
Kxf4 {[%clk 0:01:25.5]} 46... Rd3 {[%clk 0:02:03.5]} 47. Rb6+ {[%clk 0:01:21.6]}
47... Ke7 {[%clk 0:02:02.4]} 48. Rb5 {[%clk 0:01:12.9]} 48... Ra3 {[%clk
0:02:00]} 49. Rxc5 {[%clk 0:01:09]} 49... Rxa4 {[%clk 0:01:59.4]} 50. Rb5 {[%clk
0:01:06.5]} 50... Kd6 {[%clk 0:01:57.3]} 51. Bd1 {[%clk 0:01:03.3]} 51... Rxa2
{[%clk 0:01:55.6]} 52. Rxb4 {[%clk 0:01:02]} 52... Rd2 {[%clk 0:01:54.9]} 53.
Bf3 {[%clk 0:00:59.7]} 53... Kc5 {[%clk 0:01:53.6]} 54. Rb5+ {[%clk 0:00:57.1]}
54... Kxc4 {[%clk 0:01:52.6]} 55. Rf5 {[%clk 0:00:55.8]} 55... Rd6 {[%clk
0:01:51.7]} 56. g5 {[%clk 0:00:53.1]} 56... fxg5+ {[%clk 0:01:50.6]} 57. Rxg5
{[%clk 0:00:51.9]} 57... Rf6+ {[%clk 0:01:49.7]} 58. Rf5 {[%clk 0:00:51]} 58...
Rh6 {[%clk 0:01:48.7]} 59. Kg5 {[%clk 0:00:48.7]} 59... Re6 {[%clk 0:01:45.3]}
60. e5 {[%clk 0:00:45.7]} 60... Kd4 {[%clk 0:01:44.5]} 61. Bg4 {[%clk
0:00:41.2]} 61... Rxe5 {[%clk 0:01:43.3]} 62. Rxe5 {[%clk 0:00:40.1]} 62... Kxe5
{[%clk 0:01:42.6]} 1/2-1/2

[Event "Live Chess"]
[Site "Chess.com"]
[Date "2024.06.02"]
[Round "-"]
[White "KGreenGator"]
[Black "RafaelRony"]
[Result "1-0"]
[WhiteElo "1790"]
[BlackElo "1064"]
[TimeControl "300"]
[EndTime "19:31:54 PDT"]
[Termination "KGreenGator won by resignation"]

1. c4 {[%clk 0:04:57.4]} 1... e6 {[%clk 0:04:58.5]} 2. Nc3 {[%clk 0:04:55.1]}
2... d5 {[%clk 0:04:58.4]} 3. cxd5 {[%clk 0:04:52.9]} 3... e5 {[%clk 0:04:57.4]}
4. e4 {[%clk 0:04:51.2]} 4... Be6 {[%clk 0:04:37.5]} 5. dxe6 {[%clk 0:04:48.9]}
5... Qxd2+ {[%clk 0:04:35.5]} 6. Qxd2 {[%clk 0:04:47.2]} 6... Nf6 {[%clk
0:04:29.4]} 7. exf7+ {[%clk 0:04:44.9]} 7... Ke7 {[%clk 0:04:27.5]} 8. Bc4
{[%clk 0:04:41.7]} 8... Na6 {[%clk 0:04:25.5]} 9. Nd5+ {[%clk 0:04:36.6]} 9...
Nxd5 {[%clk 0:04:22.9]} 10. Qxd5 {[%clk 0:04:35.3]} 10... Nb4 {[%clk 0:04:21.6]}
11. Qe6+ {[%clk 0:04:34.2]} 1-0

[Event "Live Chess"]
[Site "Chess.com"]
[Date "2024.06.02"]
[Round "-"]
[White "CheckThis4"]
[Black "IgorSchukin"]
[Result "1-0"]
[WhiteElo "2693"]
[BlackElo "1762"]
[TimeControl "300"]
[EndTime "19:32:12 PDT"]
[Termination "CheckThis4 won on time"]

1. d4 {[%clk 0:04:57.2]} 1... d5 {[%clk 0:04:59.1]} 2. Nc3 {[%clk 0:04:57.1]}
2... Nf6 {[%clk 0:04:57.3]} 3. e4 {[%clk 0:04:56.7]} 3... dxe4 {[%clk
0:04:55.6]} 4. f3 {[%clk 0:04:55]} 4... exf3 {[%clk 0:04:51.7]} 5. Nxf3 {[%clk
0:04:53.4]} 5... Bg4 {[%clk 0:04:51.2]} 6. h3 {[%clk 0:04:51.9]} 6... Bxf3
{[%clk 0:04:49.7]} 7. Qxf3 {[%clk 0:04:50.4]} 7... c6 {[%clk 0:04:47.7]} 8. Be3
{[%clk 0:04:40.8]} 8... Nd5 {[%clk 0:04:35.1]} 9. Bc4 {[%clk 0:04:35.1]} 9... e6
{[%clk 0:04:30.9]} 10. O-O {[%clk 0:04:32.2]} 10... Qc7 {[%clk 0:04:21.2]} 11.
Bxd5 {[%clk 0:04:22.3]} 11... exd5 {[%clk 0:04:18]} 12. Bf4 {[%clk 0:04:19.5]}
12... Qd7 {[%clk 0:04:07.2]} 13. Rae1+ {[%clk 0:04:15.7]} 13... Be7 {[%clk
0:04:02.6]} 14. Bxb8 {[%clk 0:04:12.7]} 14... Rxb8 {[%clk 0:03:55.8]} 15. Qxf7+
{[%clk 0:04:09.9]} 15... Kd8 {[%clk 0:03:54.6]} 16. Qxg7 {[%clk 0:04:06.5]}
16... Re8 {[%clk 0:03:39.9]} 17. Rf7 {[%clk 0:04:03.8]} 17... Qd6 {[%clk
0:03:24.7]} 18. Qxh7 {[%clk 0:03:53.4]} 18... Rc8 {[%clk 0:03:22.3]} 19. Re5
{[%clk 0:03:39.3]} 19... Rc7 {[%clk 0:03:20.2]} 20. Qf5 {[%clk 0:03:34.6]} 20...
Rd7 {[%clk 0:03:07.6]} 21. a3 {[%clk 0:03:19.1]} 21... a5 {[%clk 0:02:52]} 22.
Na4 {[%clk 0:03:13.6]} 22... Qc7 {[%clk 0:02:42.3]} 23. Nc5 {[%clk 0:02:56.6]}
23... Bxc5 {[%clk 0:02:40.1]} 24. Rxd7+ {[%clk 0:02:46.6]} 24... Qxd7 {[%clk
0:02:36.4]} 25. Rxe8+ {[%clk 0:02:42.4]} 25... Qxe8 {[%clk 0:02:18.2]} 26. dxc5
{[%clk 0:02:40.9]} 26... Qe3+ {[%clk 0:02:13.3]} 27. Qf2 {[%clk 0:02:33.5]}
27... Qc1+ {[%clk 0:02:11.8]} 28. Kh2 {[%clk 0:02:31.9]} 28... Qxb2 {[%clk
0:02:10.3]} 29. Qf8+ {[%clk 0:02:28.9]} 29... Kc7 {[%clk 0:02:06.9]} 30. Qd6+
{[%clk 0:02:27.9]} 30... Kc8 {[%clk 0:02:05.4]} 31. h4 {[%clk 0:02:21.1]} 31...
Qxc2 {[%clk 0:02:02.6]} 32. h5 {[%clk 0:02:19.2]} 32... Qe4 {[%clk 0:01:57.1]}
33. Qf8+ {[%clk 0:02:05.3]} 33... Kc7 {[%clk 0:01:52.3]} 34. Qg7+ {[%clk
0:02:02]} 34... Kc8 {[%clk 0:01:49.1]} 35. Qg5 {[%clk 0:01:38.5]} 35... d4
{[%clk 0:01:31.4]} 36. h6 {[%clk 0:01:37]} 36... d3 {[%clk 0:01:29.2]} 37. Kh3
{[%clk 0:01:26.1]} 37... Qe6+ {[%clk 0:01:14.6]} 38. Kh4 {[%clk 0:01:15.8]}
38... Qe4+ {[%clk 0:01:10.7]} 39. Kh5 {[%clk 0:01:05.8]} 39... Qe2+ {[%clk
0:01:04.4]} 40. Kh4 {[%clk 0:00:56.6]} 40... Qe4+ {[%clk 0:00:59.6]} 41. Kh3
{[%clk 0:00:54.2]} 41... Qe6+ {[%clk 0:00:53.5]} 42. g4 {[%clk 0:00:51.8]} 42...
Qe2 {[%clk 0:00:34.1]} 43. Qf5+ {[%clk 0:00:47.7]} 43... Kd8 {[%clk 0:00:25.6]}
44. h7 {[%clk 0:00:43]} 44... Qe3+ {[%clk 0:00:21.5]} 45. Kg2 {[%clk 0:00:38.6]}
45... Qe2+ {[%clk 0:00:19.3]} 46. Kg3 {[%clk 0:00:37.9]} 46... Qe3+ {[%clk
0:00:17.9]} 47. Kh4 {[%clk 0:00:37.2]} 47... Qh6+ {[%clk 0:00:15.8]} 48. Qh5
{[%clk 0:00:35.7]} 48... Qf6+ {[%clk 0:00:07.2]} 49. Qg5 {[%clk 0:00:34.1]}
49... Qxg5+ {[%clk 0:00:06.2]} 50. Kxg5 {[%clk 0:00:34]} 50... d2 {[%clk
0:00:05.1]} 51. h8=Q+ {[%clk 0:00:33.1]} 51... Ke7 {[%clk 0:00:03.7]} 52. Qf6+
{[%clk 0:00:31.5]} 52... Ke8 {[%clk 0:00:02.5]} 53. Qe6+ {[%clk 0:00:30.7]}
53... Kf8 {[%clk 0:00:01.4]} 54. Qd6+ {[%clk 0:00:30]} 1-0

[Event "Live Chess"]
[Site "Chess.com"]
[Date "2024.06.02"]
[Round "-"]
[White "Cruiseylee78"]
[Black "booktrunk"]
[Result "1-0"]
[WhiteElo "1693"]
[BlackElo "1511"]
[TimeControl "300"]
[EndTime "19:33:02 PDT"]
[Termination "Cruiseylee78 won by resignation"]

1. d4 {[%clk 0:04:55.4]} 1... b6 {[%clk 0:04:57.8]} 2. Bf4 {[%clk 0:04:51.1]}
2... Bb7 {[%clk 0:04:54.3]} 3. Nf3 {[%clk 0:04:46.9]} 3... e6 {[%clk 0:04:50.5]}
4. e3 {[%clk 0:04:41.9]} 4... h6 {[%clk 0:04:47]} 5. Nbd2 {[%clk 0:04:37.7]}
5... Nf6 {[%clk 0:04:45.2]} 6. Bd3 {[%clk 0:04:32.7]} 6... Nh5 {[%clk
0:04:41.4]} 7. Bg3 {[%clk 0:04:25.5]} 7... Nxg3 {[%clk 0:04:40.1]} 8. hxg3
{[%clk 0:04:18]} 8... Be7 {[%clk 0:04:39]} 9. c3 {[%clk 0:04:03.6]} 9... d6
{[%clk 0:04:32.9]} 10. Qc2 {[%clk 0:03:55.5]} 10... Nd7 {[%clk 0:04:30.7]} 11.
a3 {[%clk 0:03:46.7]} 11... c5 {[%clk 0:04:27.4]} 12. O-O-O {[%clk 0:03:40.8]}
12... cxd4 {[%clk 0:04:25.3]} 13. exd4 {[%clk 0:03:34.3]} 13... Bf6 {[%clk
0:04:17.4]} 14. Be4 {[%clk 0:03:28.9]} 14... d5 {[%clk 0:04:11.4]} 15. Bd3
{[%clk 0:03:24.4]} 15... Rc8 {[%clk 0:04:09.7]} 16. Kb1 {[%clk 0:03:18.6]} 16...
Nb8 {[%clk 0:04:02.6]} 17. Ne5 {[%clk 0:03:13.2]} 17... Nc6 {[%clk 0:03:26.9]}
18. Nef3 {[%clk 0:03:08.3]} 18... Nxd4 {[%clk 0:03:15.7]} 19. Nxd4 {[%clk
0:03:02.5]} 19... Bxd4 {[%clk 0:03:13.7]} 20. Qa4+ {[%clk 0:02:57.6]} 20... Bc6
{[%clk 0:03:01.6]} 21. Qxd4 {[%clk 0:02:53.5]} 21... f6 {[%clk 0:03:00.7]} 22.
Qg4 {[%clk 0:02:48.1]} 22... Kf8 {[%clk 0:02:52.1]} 23. Qxe6 {[%clk 0:02:44.3]}
23... Bb7 {[%clk 0:02:34.8]} 24. Nf3 {[%clk 0:02:37.5]} 24... Rc6 {[%clk
0:02:32.9]} 25. Qg4 {[%clk 0:02:30.8]} 25... Bc8 {[%clk 0:02:21.6]} 26. Qh5
{[%clk 0:02:26.6]} 26... Qd6 {[%clk 0:02:16.2]} 27. Rde1 {[%clk 0:02:21.7]}
27... Bd7 {[%clk 0:02:12.3]} 28. Nh4 {[%clk 0:02:17.3]} 1-0

[Event "Live Chess"]
[Site "Chess.com"]
[Date "2024.06.02"]
[Round "-"]
[White "Dhaydon19"]
[Black "NeilDruggan73"]
[Result "1-0"]
[WhiteElo "2683"]
[BlackElo "1787"]
[TimeControl "300"]
[EndTime "19:33:17 PDT"]
[Termination "Dhaydon19 won by checkmate"]

1. e4 {[%clk 0:04:57.9]} 1... d6 {[%clk 0:04:58.2]} 2. d4 {[%clk 0:04:55.5]}
2... Nf6 {[%clk 0:04:56.7]} 3. Nc3 {[%clk 0:04:54.6]} 3... g6 {[%clk 0:04:55.7]}
4. Bc4 {[%clk 0:04:53.7]} 4... Bg7 {[%clk 0:04:51.6]} 5. Qe2 {[%clk 0:04:47.6]}
5... O-O {[%clk 0:04:47.5]} 6. Nf3 {[%clk 0:04:45.1]} 6... c6 {[%clk 0:04:45]}
7. e5 {[%clk 0:04:42.3]} 7... Nh5 {[%clk 0:04:36.7]} 8. h3 {[%clk 0:04:39]} 8...
dxe5 {[%clk 0:04:21.6]} 9. dxe5 {[%clk 0:04:36.9]} 9... b5 {[%clk 0:04:07]} 10.
Bb3 {[%clk 0:04:30.7]} 10... Bh8 {[%clk 0:03:49.3]} 11. Bh6 {[%clk 0:04:26.2]}
11... Ng7 {[%clk 0:03:46.2]} 12. Rd1 {[%clk 0:04:22.8]} 12... Qc7 {[%clk
0:03:37.7]} 13. Ne4 {[%clk 0:04:17.7]} 13... Nd7 {[%clk 0:03:29.1]} 14. e6
{[%clk 0:04:08.6]} 14... fxe6 {[%clk 0:03:23.6]} 15. O-O {[%clk 0:03:59.9]}
15... Rf5 {[%clk 0:03:08.9]} 16. Ng3 {[%clk 0:03:55.6]} 16... a5 {[%clk
0:02:45.9]} 17. Nxf5 {[%clk 0:03:51.9]} 17... gxf5 {[%clk 0:02:41.1]} 18. Qxe6+
{[%clk 0:03:44.6]} 18... Nxe6 {[%clk 0:02:12.8]} 19. Bxe6# {[%clk 0:03:41.5]}
1-0

[Event "Live Chess"]
[Site "Chess.com"]
[Date "2024.06.02"]
[Round "-"]
[White "MagnersCarlsberg2870"]
[Black "Aleshenka"]
[Result "0-1"]
[WhiteElo "1807"]
[BlackElo "2430"]
[TimeControl "300"]
[EndTime "19:35:16 PDT"]
[Termination "Aleshenka won by resignation"]

1. d4 {[%clk 0:04:57.4]} 1... d5 {[%clk 0:04:58.5]} 2. e3 {[%clk 0:04:56.3]}
2... Nf6 {[%clk 0:04:56.9]} 3. Bd3 {[%clk 0:04:55.5]} 3... c6 {[%clk 0:04:55.5]}
4. Nd2 {[%clk 0:04:54.4]} 4... Bg4 {[%clk 0:04:53.4]} 5. f3 {[%clk 0:04:53.4]}
5... Bh5 {[%clk 0:04:52.7]} 6. Ne2 {[%clk 0:04:52.8]} 6... Bg6 {[%clk
0:04:49.9]} 7. O-O {[%clk 0:04:50.1]} 7... Bxd3 {[%clk 0:04:47.2]} 8. cxd3
{[%clk 0:04:49.2]} 8... e6 {[%clk 0:04:46.5]} 9. e4 {[%clk 0:04:48.5]} 9... Be7
{[%clk 0:04:44.7]} 10. Qb3 {[%clk 0:04:47.4]} 10... Qb6 {[%clk 0:04:43.3]} 11.
Qd1 {[%clk 0:04:44.8]} 11... O-O {[%clk 0:04:41.6]} 12. e5 {[%clk 0:04:43.5]}
12... Nfd7 {[%clk 0:04:38.6]} 13. f4 {[%clk 0:04:42.6]} 13... c5 {[%clk
0:04:37.4]} 14. Nf3 {[%clk 0:04:41.4]} 14... Nc6 {[%clk 0:04:28.9]} 15. Ng5
{[%clk 0:04:34.6]} 15... h6 {[%clk 0:04:20.6]} 16. Nf3 {[%clk 0:04:27.9]} 16...
cxd4 {[%clk 0:04:14]} 17. Ng3 {[%clk 0:04:23.5]} 17... f6 {[%clk 0:04:00.7]} 18.
Nh5 {[%clk 0:04:17.2]} 18... fxe5 {[%clk 0:03:49.2]} 19. Nxe5 {[%clk 0:04:16.1]}
19... Ndxe5 {[%clk 0:03:44.2]} 20. fxe5 {[%clk 0:04:11.9]} 20... Rxf1+ {[%clk
0:03:38.5]} 21. Qxf1 {[%clk 0:04:07]} 21... Nxe5 {[%clk 0:03:27.7]} 22. Qe2
{[%clk 0:04:02.8]} 22... Nf7 {[%clk 0:03:22.4]} 23. Qg4 {[%clk 0:03:56.9]} 23...
Bf8 {[%clk 0:03:13.8]} 24. Qg6 {[%clk 0:03:49.6]} 24... e5 {[%clk 0:03:10.9]}
25. Qg3 {[%clk 0:03:32.7]} 25... Qe6 {[%clk 0:03:05.4]} 26. Bd2 {[%clk
0:03:26.1]} 26... e4 {[%clk 0:02:59.4]} 27. Rf1 {[%clk 0:03:22.4]} 27... e3
{[%clk 0:02:57.7]} 28. Be1 {[%clk 0:03:17.5]} 28... Ng5 {[%clk 0:02:45.6]} 29.
h4 {[%clk 0:03:12.7]} 29... Bd6 {[%clk 0:02:44.2]} 30. Nf4 {[%clk 0:03:00]}
30... Bxf4 {[%clk 0:02:36.5]} 31. Qxf4 {[%clk 0:02:51.9]} 31... Nh7 {[%clk
0:02:33.5]} 32. Qxd4 {[%clk 0:02:50.5]} 32... Nf6 {[%clk 0:02:31.8]} 33. Bg3
{[%clk 0:02:33.1]} 33... e2 {[%clk 0:02:27.2]} 34. Re1 {[%clk 0:02:32]} 34...
Re8 {[%clk 0:02:25.5]} 35. Qxa7 {[%clk 0:02:15.9]} 35... Ng4 {[%clk 0:02:24.6]}
36. Qxb7 {[%clk 0:02:13.7]} 36... Qe3+ {[%clk 0:02:23.1]} 37. Kh1 {[%clk
0:02:11.4]} 37... Qxg3 {[%clk 0:02:21.6]} 0-1

[Event "Live Chess"]
[Site "Chess.com"]
[Date "2024.06.02"]
[Round "-"]
[White "RafaelRony"]
[Black "CheckThis4"]
[Result "0-1"]
[WhiteElo "1064"]
[BlackElo "2693"]
[TimeControl "300"]
[EndTime "19:36:33 PDT"]
[Termination "CheckThis4 won by resignation"]

1. d4 {[%clk 0:04:47.9]} 1... Nf6 {[%clk 0:04:57.3]} 2. c4 {[%clk 0:04:46.2]}
2... g6 {[%clk 0:04:56]} 3. Nf3 {[%clk 0:04:45.1]} 3... Bg7 {[%clk 0:04:54.5]}
4. Nc3 {[%clk 0:04:44.2]} 4... d5 {[%clk 0:04:52.8]} 5. cxd5 {[%clk 0:04:40.3]}
5... Nxd5 {[%clk 0:04:51.2]} 6. e4 {[%clk 0:04:39.7]} 6... Nxc3 {[%clk
0:04:48.9]} 7. bxc3 {[%clk 0:04:39.6]} 7... c5 {[%clk 0:04:48.4]} 8. Bc4 {[%clk
0:04:21.7]} 8... O-O {[%clk 0:04:35.7]} 9. e5 {[%clk 0:04:15.4]} 9... Qc7 {[%clk
0:04:29.2]} 10. Qb3 {[%clk 0:04:11.1]} 10... Nc6 {[%clk 0:04:23.1]} 11. Be3
{[%clk 0:04:05.6]} 11... cxd4 {[%clk 0:04:19]} 12. cxd4 {[%clk 0:04:05.5]} 12...
Na5 {[%clk 0:04:17.6]} 13. Bxf7+ {[%clk 0:03:58.5]} 13... Rxf7 {[%clk
0:04:16.3]} 14. Qd3 {[%clk 0:03:55.6]} 14... Bf5 {[%clk 0:04:12.8]} 15. Qd2
{[%clk 0:03:54]} 15... Nc4 {[%clk 0:04:11]} 16. Qe2 {[%clk 0:03:50.9]} 16...
Nxe3 {[%clk 0:04:08]} 17. Qxe3 {[%clk 0:03:50.5]} 17... Qa5+ {[%clk 0:04:06.1]}
18. Nd2 {[%clk 0:03:47.5]} 18... Rc8 {[%clk 0:04:02.6]} 19. O-O {[%clk 0:03:47]}
19... Be6 {[%clk 0:04:00.4]} 20. a3 {[%clk 0:03:41.1]} 20... Rc3 {[%clk
0:03:54.5]} 21. Qe2 {[%clk 0:03:36.8]} 21... Bd5 {[%clk 0:03:51]} 22. e6 {[%clk
0:03:28.5]} 22... Rf6 {[%clk 0:03:42.9]} 23. Rfe1 {[%clk 0:03:15.4]} 23... Rxe6
{[%clk 0:03:40.5]} 24. Qg4 {[%clk 0:03:12.7]} 24... Rxe1+ {[%clk 0:03:37.6]} 25.
Rxe1 {[%clk 0:03:12.6]} 25... e6 {[%clk 0:03:33.6]} 26. Qf4 {[%clk 0:03:03.5]}
26... Rc8 {[%clk 0:03:23.8]} 27. Qd6 {[%clk 0:02:56.7]} 27... Qxd2 {[%clk
0:03:18.8]} 28. Rf1 {[%clk 0:02:49.1]} 28... Bxd4 {[%clk 0:03:16.3]} 0-1

[Event "Live Chess"]
[Site "Chess.com"]
[Date "2024.06.02"]
[Round "-"]
[White "NeilDruggan73"]
[Black "MagnersCarlsberg2870"]
[Result "0-1"]
[WhiteElo "1779"]
[BlackElo "1815"]
[TimeControl "300"]
[EndTime "19:37:49 PDT"]
[Termination "MagnersCarlsberg2870 won by checkmate"]

1. d4 {[%clk 0:04:56.7]} 1... Nf6 {[%clk 0:04:58.1]} 2. Bg5 {[%clk 0:04:54.2]}
2... d5 {[%clk 0:04:53.4]} 3. Bxf6 {[%clk 0:04:52.7]} 3... exf6 {[%clk 0:04:52]}
4. e3 {[%clk 0:04:52.4]} 4... c5 {[%clk 0:04:50.9]} 5. dxc5 {[%clk 0:04:49.7]}
5... Bxc5 {[%clk 0:04:49.3]} 6. g3 {[%clk 0:04:46.4]} 6... Qb6 {[%clk
0:04:47.8]} 7. b3 {[%clk 0:04:41]} 7... O-O {[%clk 0:04:44.5]} 8. Ne2 {[%clk
0:04:37.3]} 8... Re8 {[%clk 0:04:41.2]} 9. Bg2 {[%clk 0:04:35.7]} 9... Bg4
{[%clk 0:04:30.3]} 10. O-O {[%clk 0:04:33.6]} 10... Bxe3 {[%clk 0:04:25.7]} 11.
Qxd5 {[%clk 0:04:09]} 11... Bxf2+ {[%clk 0:04:19.2]} 12. Rxf2 {[%clk 0:04:01]}
12... Rxe2 {[%clk 0:04:13.9]} 13. Nc3 {[%clk 0:03:54.8]} 13... Qxf2+ {[%clk
0:04:11.1]} 14. Kh1 {[%clk 0:03:52]} 14... Re1+ {[%clk 0:04:06]} 15. Rxe1 {[%clk
0:03:40.3]} 15... Qxe1+ {[%clk 0:04:03.9]} 16. Bf1 {[%clk 0:03:36.4]} 16...
Qxf1# {[%clk 0:04:02.7]} 0-1